fUST/lending_fUST_20250901
["ID","MTS","AMOUNT","RATE_DAILY","PERIOD"]
[382579559,1756673465110,-480.0,0.00017923,2]
[382579561,1756673465119,-704.47,0.00017923,2]
[382579563,1756673465128,-480.0,0.00017923,2]
[382579565,1756673465138,-1311.0,0.00017924,2]
[382579567,1756673465147,-535.16,0.00017924,2]
[382579569,1756673465157,-577.8,0.00017924,2]
[382579571,1756673465166,-481.42,0.00017924,2]
[382579573,1756673465175,-480.0,0.00017924,2]
[382579575,1756673465185,-500.0,0.00017973,2]
[382579577,1756673465194,-389.23249397,0.00017973,2]
[382579579,1756673465203,-608.87160144,0.00017973,2]
[382579581,1756673465212,-500.0,0.00017973,2]
[382579583,1756673465221,-500.0,0.00017973,2]
[382579585,1756673465230,-500.0,0.00017973,2]
[382579587,1756673465240,-500.0,0.00017973,2]
[382579589,1756673465249,-500.0,0.00017973,2]
[382579591,1756673465258,-415.11432726,0.00017973,2]
[382579593,1756673465267,-500.0,0.00017973,2]
[382579595,1756673465276,-500.0,0.00017973,2]
[382579597,1756673465284,-500.0,0.00017973,2]
[382579599,1756673465294,-642.24989844,0.00017973,2]
[382579602,1756673465303,-558.99911469,0.00017973,2]
[382579603,1756673465313,-500.0,0.00017973,2]
[382579605,1756673465322,-500.0,0.00017973,2]
[382579607,1756673465331,-164.19633942,0.00017973,2]
[382579609,1756673465341,-500.0,0.00017973,2]
[382579611,1756673465351,-500.0,0.00017973,2]
[382579613,1756673465362,-200.97791539,0.00017973,2]
[382579616,1756673465371,-500.0,0.00017973,2]
[382579618,1756673465381,-566.07791943,0.00017973,2]
[382579620,1756673465390,-500.0,0.00017973,2]
[382579622,1756673465400,-501.4632323,0.00017973,2]
[382579624,1756673465410,-500.0,0.00017973,2]
[382579626,1756673465419,-500.0,0.00017973,2]
[382579628,1756673465428,-500.0,0.00017973,2]
[382579630,1756673465437,-500.0,0.00017973,2]
[382579632,1756673465447,-500.0,0.00017973,2]
[382579634,1756673465456,-500.0,0.00017973,2]
[382579636,1756673465465,-500.0,0.00017973,2]
[382579638,1756673465475,-500.0,0.00017973,2]
[382579640,1756673465484,-486.0,0.00017992,2]
[382579642,1756673465494,-142964.69253649,0.00018,2]
[382579644,1756673465503,-1000.0,0.00018,18]
[382579646,1756673465512,-566.91,0.00018005,21]
[382579648,1756673465521,-729.42,0.00018078,2]
[382579650,1756673465530,-897.0,0.00018078,2]
[382579652,1756673465541,-867.52,0.00018078,2]
[382579654,1756673465552,-480.0,0.00018078,2]
[382579656,1756673465561,-480.0,0.00018078,2]
[382579658,1756673465570,-480.0,0.00018078,2]
[382579660,1756673465579,-480.0,0.00018078,2]
[382579662,1756673465588,-480.0,0.00018078,2]
[382579664,1756673465598,-160.0,0.0001808,2]
[382579666,1756673465607,-431.0,0.00018085,2]
[382579668,1756673465616,-420.0,0.00018085,2]
[382579670,1756673465625,-220.0,0.00018125,26]
[382579672,1756673465635,-506.98902311,0.00018168,2]
[382579674,1756673465644,-1002.21089762,0.00018168,2]
[382579676,1756673465653,-1500.0,0.00018168,2]
[382579678,1756673465663,-1500.0,0.00018168,2]
[382579680,1756673465672,-1500.0,0.00018168,2]
[382579682,1756673465682,-1507.76408597,0.00018168,2]
[382579684,1756673465691,-1079.34668092,0.00018168,2]
[382579686,1756673465701,-1500.0,0.00018168,2]
[382579688,1756673465712,-1363.11304812,0.00018168,2]
[382579690,1756673465721,-247.69653566,0.00018168,2]
[382579692,1756673465731,-1500.0,0.00018168,2]
[382579694,1756673465740,-1500.0,0.00018168,2]
[382579697,1756673465749,-500.0,0.0001817,2]
[382579699,1756673465758,-485.39,0.00018194,2]
[382579701,1756673465768,-480.0,0.00018194,2]
[382579703,1756673465779,-1365.93,0.00018194,2]
[382579705,1756673465789,-730.45,0.00018194,2]
[382579707,1756673465798,-942.24,0.00018194,2]
[382579709,1756673465808,-962.74,0.00018194,2]
[382579711,1756673465818,-779.31,0.00018194,2]
[382579713,1756673465827,-481.12,0.00018194,2]
[382579715,1756673465837,-493.87,0.00018194,2]
[382579717,1756673465847,-480.0,0.00018194,2]
[382579719,1756673465858,-480.0,0.00018194,2]
[382579721,1756673465867,-583.55,0.00018194,2]
[382579739,1756673466029,-480.0,0.00018194,2]
[382579741,1756673466039,-504.26,0.00018194,2]
[382579743,1756673466049,-724.91,0.00018194,2]
[382579746,1756673466059,-480.0,0.00018194,2]
[382579748,1756673466068,-480.0,0.00018194,2]
[382579750,1756673466078,-480.0,0.00018194,2]
[382579752,1756673466087,-838.03,0.00018194,2]
[382579754,1756673466096,-480.0,0.00018194,2]
[382579755,1756673466106,-832.52,0.00018194,2]
[382579757,1756673466116,-538.97,0.00018194,2]
[382579759,1756673466126,-480.0,0.00018194,2]
[382579761,1756673466137,-480.0,0.00018194,2]
[382579764,1756673466156,-888.43,0.00018194,2]
[382579766,1756673466175,-584.41,0.00018194,2]
[382579767,1756673466195,-677.01,0.00018194,2]
[382579769,1756673466209,-1118.76,0.00018194,2]
[382579770,1756673466219,-617.52,0.00018194,2]
[382579772,1756673466228,-480.0,0.00018194,2]
[382579773,1756673466237,-1071.48,0.00018194,2]
[382579775,1756673466247,-480.0,0.00018194,2]
[382579776,1756673466257,-701.86,0.00018194,2]
[382579778,1756673466266,-2058.26,0.00018194,2]
[382579779,1756673466275,-970.63,0.00018194,2]
[382579781,1756673466284,-702.06,0.00018194,2]
[382579782,1756673466293,-468.7537397,0.00018194,2]
[382579830,1756673467055,-11.2462603,0.00018194,2]
[382579832,1756673467064,-480.0,0.00018194,2]
[382579834,1756673467074,-480.0,0.00018194,2]
[382579835,1756673467084,-486.67,0.00018194,2]
[382579837,1756673467093,-480.0,0.00018194,2]
[382579839,1756673467103,-480.0,0.00018194,2]
[382579840,1756673467112,-480.0,0.00018194,2]
[382579842,1756673467121,-480.0,0.00018194,2]
[382579843,1756673467130,-480.0,0.00018194,2]
[382579845,1756673467138,-480.0,0.00018194,2]
[382579846,1756673467147,-480.0,0.00018194,2]
[382579848,1756673467154,-480.0,0.00018194,2]
[382579849,1756673467162,-603.89,0.00018194,2]
[382579851,1756673467168,-144.51252985,0.00018194,2]
[382579884,1756673467650,-151.0,0.00016827,2]
[382579886,1756673467660,-151.0,0.00016827,2]
[382579887,1756673467670,-604.0,0.00017099,2]
[382579929,1756673468279,480.0,0.0001655,2]
[382579945,1756673468501,480.0,0.0001655,2]
[382580102,1756673470545,480.0,0.0001655,2]
[382580137,1756673470864,2245.00111856,0.00016551,2]
[382580144,1756673470923,480.0,0.0001655,2]
[382580254,1756673471954,630.88,0.0001655,2]
[382580262,1756673472020,480.0,0.0001655,2]
[382580267,1756673472057,300.0,0.0001655,2]
[382580294,1756673472297,480.0,0.0001655,2]
[382580305,1756673472389,480.0,0.0001655,2]
[382580511,1756673474530,687.1,0.0001655,2]
[382580593,1756673475474,480.0,0.0001655,2]
[382580632,1756673475821,480.0,0.0001655,2]
[382580644,1756673475924,480.0,0.0001655,2]
[382580877,1756673478126,480.0,0.0001655,2]
[382581087,1756673480197,480.0,0.0001655,2]
[382581130,1756673480574,858.25,0.0001655,2]
[382581206,1756673481629,480.0,0.0001655,2]
[382581369,1756673483223,480.0,0.0001655,2]
[382581477,1756673485858,2914.17,0.0001655,2]
[382581479,1756673485923,480.0,0.0001655,2]
[382581491,1756673486039,1032.09,0.0001655,2]
[382581900,1756673490742,1457.93,0.0001655,2]
[382581914,1756673490873,20377.52620241,0.00016508,2]
[382582123,1756673493173,-478.19002038,0.00016508,2]
[382582197,1756673496350,-182.49258545,0.00016508,2]
[382582198,1756673498511,-268.83252321,0.00016508,2]
[382582199,1756673506325,-487.47300434,0.00016508,2]
[382582200,1756673509096,-154.49997804,0.00016508,2]
[382582201,1756673510837,-300.42387482,0.00016508,2]
[382582202,1756673514260,-280.47034954,0.00016508,2]
[382582203,1756673516634,-169.91423159,0.00016508,2]
[382582204,1756673518898,-189.3994798,0.00016508,2]
[382582205,1756673521137,-535.07989466,0.00016508,2]
[382582206,1756673523815,-270.6470374,0.00016507,2]
[382582207,1756673526015,-29.3529626,0.00016507,2]
[382582208,1756673526227,-262.13604441,0.00016508,2]
[382582209,1756673532222,215.92,0.00016498,3]
[382582210,1756673542855,647.76,0.00016498,3]
[382582211,1756673547542,153.771528,0.00025,30]
[382582214,1756673555593,219.4879014,0.00016408,2]
[382582215,1756673560572,219.4879014,0.0001645,2]
[382582217,1756673568788,3384.6877574,0.00015552,2]
[382582226,1756673580177,888.15453181,0.0001645,2]
[382582227,1756673582751,4424.51190799,0.000165,2]
[382582229,1756673589967,154.186936,0.00025,30]
[382582230,1756673590261,154.186936,0.00024975,30]
[382582231,1756673590622,5000.0,0.000165,2]
[382582260,1756673710953,-575.48809201,0.000165,2]
[382582262,1756673715918,168.46392776,0.000165,2]
[382582285,1756673803765,963.584336,0.00013699,2]
[382582297,1756673841171,-300.0,0.00016506,2]
[382582298,1756673841205,-1200.0,0.00016506,2]
[382582299,1756673841236,-480.0,0.00016507,2]
[382582300,1756673841272,-300.0,0.00016507,2]
[382582301,1756673841303,-1200.0,0.00016507,2]
[382582302,1756673841335,-480.0,0.00016507,2]
[382582303,1756673841369,-480.0,0.00016507,2]
[382582304,1756673841405,-480.0,0.00016507,2]
[382582305,1756673841577,-732.42,0.00016507,2]
[382582306,1756673841958,-5590.66087816,0.00016508,2]
[382582307,1756673842018,-10000.01,0.00016508,2]
[382582308,1756673842047,-10000.01,0.00016508,2]
[382582309,1756673842064,-10000.01,0.00016508,2]
[382582310,1756673842092,-10000.01,0.00016508,2]
[382582311,1756673842247,-10000.01,0.00016508,2]
[382582312,1756673842399,-10000.01,0.00016508,2]
[382582313,1756673842654,-10000.01,0.00016508,2]
[382582316,1756673854205,925.16097065,0.0001645,2]
[382582323,1756673878684,5000.0,0.000165,2]
[382582326,1756673886574,4074.84902935,0.000165,2]
[382582327,1756673886889,925.15097065,0.000165,2]
[382582333,1756673901923,5000.0,0.000165,2]
[382582335,1756673909876,4074.85902935,0.000165,2]
[382582336,1756673909900,925.14097065,0.000165,2]
[382582338,1756673921395,-480.0,0.00016507,2]
[382582339,1756673921427,-859.94,0.00016507,2]
[382582340,1756673921461,-480.0,0.00016507,2]
[382582341,1756673921494,-300.0,0.00016507,2]
[382582342,1756673921526,-480.0,0.00016507,2]
[382582343,1756673921557,-480.0,0.00016507,2]
[382582344,1756673921893,-2914.98902935,0.00016508,2]
[382582345,1756673921919,-10000.01,0.00016508,2]
[382582346,1756673922018,-10000.01,0.00016508,2]
[382582347,1756673922166,-10000.01,0.00016508,2]
[382582348,1756673922297,-10000.01,0.00016508,2]
[382582349,1756673922599,-10000.01,0.00016508,2]
[382582350,1756673922716,-10000.01,0.00016508,2]
[382582351,1756673922885,-10000.01,0.00016508,2]
[382582355,1756673942418,352.74588936,0.00016408,2]
[382582356,1756673945103,203.83846135,0.00016407,2]
[382582363,1756674016195,466.929488,0.0001554,2]
[382582364,1756674023031,209.40437684,0.00016498,2]
[382582365,1756674059789,151.0,0.00016498,2]
[382582366,1756674060430,151.0,0.00016498,2]
[382582367,1756674061076,151.0,0.00016498,2]
[382582368,1756674061990,151.0,0.00016498,2]
[382582369,1756674062499,151.0,0.00016498,2]
[382582370,1756674063147,151.0,0.00016498,2]
[382582371,1756674063795,151.0,0.00016498,2]
[382582372,1756674086555,431.84,0.00016498,3]
[382582373,1756674122322,5000.0,0.000165,2]
[382582374,1756674124487,809.51584931,0.00016408,2]
[382582375,1756674126830,-250.0,0.00016506,2]
[382582376,1756674126863,-1852.10998731,0.00016506,2]
[382582377,1756674126895,-300.0,0.00016506,2]
[382582378,1756674126927,-1025.53,0.00016507,2]
[382582379,1756674126957,-480.0,0.00016507,2]
[382582380,1756674126988,-620.59,0.00016507,2]
[382582381,1756674127019,-463.55002538,0.00016507,2]
[382582382,1756674127280,-16.44997462,0.00016507,2]
[382582383,1756674127313,-480.0,0.00016507,2]
[382582384,1756674127345,-480.0,0.00016507,2]
[382582385,1756674127376,-480.0,0.00016507,2]
[382582386,1756674127408,-480.0,0.00016507,2]
[382582387,1756674127443,-1911.75,0.00016507,2]
[382582388,1756674127481,-480.0,0.00016507,2]
[382582389,1756674127518,-480.0,0.00016507,2]
[382582390,1756674127639,-431.0,0.00016506,2]
[382582391,1756674127670,-480.0,0.00016507,2]
[382582392,1756674127700,-922.29,0.00016507,2]
[382582393,1756674127939,-604.28,0.00016507,2]
[382582394,1756674127971,-480.0,0.00016507,2]
[382582395,1756674128003,-480.0,0.00016507,2]
[382582396,1756674128035,-480.0,0.00016507,2]
[382582397,1756674128075,-1017.6,0.00016507,2]
[382582398,1756674128269,-480.0,0.00016507,2]
[382582399,1756674128301,-480.0,0.00016507,2]
[382582400,1756674128333,-1651.63,0.00016507,2]
[382582401,1756674128364,-810.65,0.00016507,2]
[382582402,1756674128396,-480.0,0.00016507,2]
[382582403,1756674128427,-480.0,0.00016507,2]
[382582404,1756674128457,-362.37176543,0.00016507,2]
[382582405,1756674128842,-951.85,0.00016507,2]
[382582406,1756674128873,-480.0,0.00016507,2]
[382582407,1756674128905,-480.0,0.00016507,2]
[382582408,1756674128937,-1569.08,0.00016507,2]
[382582409,1756674128969,-637.35,0.00016507,2]
[382582410,1756674129001,-487.12,0.00016507,2]
[382582411,1756674129033,-309.21,0.00016507,2]
[382582412,1756674129204,-170.79,0.00016507,2]
[382582413,1756674129237,-480.0,0.00016507,2]
[382582414,1756674129269,-480.0,0.00016507,2]
[382582415,1756674129301,-480.0,0.00016507,2]
[382582416,1756674129332,-405.43790405,0.00016507,2]
[382582417,1756674129364,-480.0,0.00016507,2]
[382582418,1756674129395,-571.36,0.00016507,2]
[382582419,1756674129427,-560.06,0.00016507,2]
[382582420,1756674129459,-480.0,0.00016507,2]
[382582421,1756674129489,-480.0,0.00016507,2]
[382582422,1756674130212,-480.0,0.00016507,2]
[382582423,1756674131316,-480.0,0.00016507,2]
[382582424,1756674131325,-480.0,0.00016507,2]
[382582425,1756674131334,-2144.67662156,0.00016507,2]
[382582426,1756674131381,-480.0,0.00016507,2]
[382582427,1756674131400,-9040.01,0.00016507,2]
[382582428,1756674131422,-10000.01,0.00016507,2]
[382582429,1756674145339,5000.0,0.000165,2]
[382582433,1756674168701,5000.0,0.000165,2]
[382582434,1756674191832,0.01,0.000165,2]
[382582435,1756674191859,4999.99,0.000165,2]
[382582438,1756674214104,5000.0,0.000165,2]
[382582439,1756674237276,0.02,0.000165,2]
[382582440,1756674237305,4999.98,0.000165,2]
[382582451,1756674284189,634.94260084,0.00016408,2]
[382582452,1756674286189,634.94260081,0.00016488,2]
[382582454,1756674292041,-300.0,0.00016506,2]
[382582455,1756674292074,-480.0,0.00016506,2]
[382582456,1756674292105,-480.0,0.00016507,2]
[382582457,1756674292136,-507.91,0.00016507,2]
[382582458,1756674292167,-480.0,0.00016507,2]
[382582459,1756674292199,-480.0,0.00016507,2]
[382582460,1756674292231,-480.0,0.00016507,2]
[382582461,1756674292263,-480.0,0.00016507,2]
[382582462,1756674292294,-1293.62,0.00016507,2]
[382582463,1756674292638,-36.95,0.00016507,2]
[382582464,1756674292667,-480.0,0.00016507,2]
[382582465,1756674292697,-480.0,0.00016507,2]
[382582466,1756674292725,-480.0,0.00016507,2]
[382582467,1756674292755,-480.0,0.00016507,2]
[382582468,1756674292784,-480.0,0.00016507,2]
[382582469,1756674292815,-839.32,0.00016507,2]
[382582470,1756674292844,-852.63,0.00016507,2]
[382582471,1756674292873,-852.63,0.00016507,2]
[382582472,1756674293033,-852.63,0.00016507,2]
[382582473,1756674293062,-852.63,0.00016507,2]
[382582474,1756674293091,-852.63,0.00016507,2]
[382582475,1756674293335,-852.63,0.00016507,2]
[382582476,1756674293367,-852.63,0.00016507,2]
[382582477,1756674293400,-621.08,0.00016507,2]
[382582478,1756674293691,-231.55,0.00016507,2]
[382582479,1756674293722,-852.63,0.00016507,2]
[382582480,1756674293755,-852.63,0.00016507,2]
[382582481,1756674293786,-1026.83,0.00016507,2]
[382582482,1756674293822,-480.0,0.00016507,2]
[382582483,1756674293854,-648.15,0.00016507,2]
[382582484,1756674293884,-380.01389464,0.00016507,2]
[382582485,1756674294005,-1077.73,0.00016507,2]
[382582486,1756674294035,-480.0,0.00016507,2]
[382582487,1756674294067,-480.0,0.00016507,2]
[382582488,1756674294097,-672.62,0.00016507,2]
[382582489,1756674294128,-480.0,0.00016507,2]
[382582490,1756674294160,-581.26,0.00016507,2]
[382582491,1756674294193,-480.0,0.00016507,2]
[382582492,1756674294224,-623.42,0.00016507,2]
[382582494,1756674294281,-480.0,0.00016507,2]
[382582495,1756674294319,-930.18,0.00016507,2]
[382582496,1756674294353,-480.0,0.00016507,2]
[382582497,1756674294389,-480.0,0.00016507,2]
[382582498,1756674294424,-480.0,0.00016507,2]
[382582499,1756674294458,-553.56,0.00016507,2]
[382582500,1756674294490,-480.0,0.00016507,2]
[382582501,1756674294526,-614.54,0.00016507,2]
[382582502,1756674294560,-480.0,0.00016507,2]
[382582503,1756674294687,-1912.93,0.00016507,2]
[382582504,1756674294721,-733.87,0.00016507,2]
[382582505,1756674294753,-480.0,0.00016507,2]
[382582506,1756674294783,-480.0,0.00016507,2]
[382582507,1756674294814,-480.0,0.00016507,2]
[382582508,1756674294845,-480.0,0.00016507,2]
[382582509,1756674294876,-386.41,0.00016507,2]
[382582510,1756674294918,-93.59,0.00016507,2]
[382582512,1756674294953,-947.4,0.00016507,2]
[382582513,1756674294988,-480.0,0.00016507,2]
[382582514,1756674295020,-971.89,0.00016507,2]
[382582515,1756674295053,-480.0,0.00016507,2]
[382582516,1756674295086,-766.89,0.00016507,2]
[382582517,1756674295120,-781.55,0.00016507,2]
[382582518,1756674295155,-477.37,0.00016507,2]
[382582519,1756674295751,-2.63,0.00016507,2]
[382582520,1756674295784,-480.0,0.00016507,2]
[382582521,1756674295817,-855.14,0.00016507,2]
[382582522,1756674295849,-1022.3,0.00016507,2]
[382582525,1756674302370,-763.57610536,0.00016507,2]
[382582526,1756674302448,-10000.01,0.00016507,2]
[382582527,1756674302481,-10000.01,0.00016507,2]
[382582528,1756674302649,-10000.01,0.00016507,2]
[382582529,1756674302860,-10000.01,0.00016507,2]
[382582530,1756674303000,-657.88931211,0.00016507,2]
[382582531,1756674303043,-8684.23137578,0.00016508,2]
[382582532,1756674303144,-1200.0,0.00016506,2]
[382582533,1756674303187,-7600.01,0.00016508,2]
[382582534,1756674303616,-300.0,0.00016506,2]
[382582535,1756674303680,-9400.01,0.00016508,2]
[382582536,1756674303772,-10000.01,0.00016508,2]
[382582537,1756674304907,164.176113,0.00015675,2]
[382582538,1756674305239,164.176113,0.00015675,41]
[382582539,1756674305713,164.176113,0.00015675,80]
[382582540,1756674305929,164.176113,0.00015675,119]
[382582543,1756674320279,209.40437684,0.00016498,2]
[382582545,1756674327212,5000.0,0.000165,2]
[382582546,1756674332029,-776.87,0.00016506,2]
[382582547,1756674332062,-480.0,0.00016507,2]
[382582548,1756674332096,-480.0,0.00016507,2]
[382582549,1756674332128,-480.0,0.00016507,2]
[382582550,1756674332161,-480.0,0.00016507,2]
[382582551,1756674332194,-883.49,0.00016507,2]
[382582552,1756674332228,-345.17565042,0.00016507,2]
[382582553,1756674332261,-480.0,0.00016507,2]
[382582554,1756674332293,-480.0,0.00016507,2]
[382582555,1756674332411,-480.0,0.00016507,2]
[382582556,1756674332432,-480.0,0.00016507,2]
[382582557,1756674332454,-155279.422173,0.00016508,2]
[382582558,1756674332529,-3155.92164494,0.00016508,2]
[382582559,1756674332687,-3688.16671012,0.00016508,2]
[382582560,1756674335188,480.0,0.00016507,2]
[382582561,1756674335589,5000.0,0.00016508,2]
[382582562,1756674339522,480.0,0.00016507,2]
[382582563,1756674340886,912.19,0.00016506,2]
[382582564,1756674341246,861.76,0.00016507,2]
[382582565,1756674347207,638.96,0.00016507,2]
[382582566,1756674348422,1627.1,0.00016507,2]
[382582567,1756674348451,27.78,0.00016507,2]
[382582568,1756674350614,920.75,0.00016507,2]
[382582569,1756674350812,5000.0,0.00016508,2]
[382582570,1756674353720,222.43187667,0.00016507,2]
[382582571,1756674358897,527.37,0.00016507,2]
[382582572,1756674359139,480.0,0.00016507,2]
[382582573,1756674359173,480.0,0.00016506,2]
[382582574,1756674365876,480.0,0.00016507,2]
[382582575,1756674373287,5000.0,0.000165,2]
[382582577,1756674381731,191.9324808,0.0001555,2]
[382582578,1756674396662,5000.0,0.000165,2]
[382582579,1756674400550,708.32636812,0.0001645,2]
[382582580,1756674405125,4291.68363188,0.000165,2]
[382582581,1756674405151,708.31636812,0.000165,2]
[382582582,1756674421685,5000.0,0.000165,2]
[382582583,1756674429969,165.9392802,0.000165,2]
[382582584,1756674443317,-1032.83,0.00016506,2]
[382582585,1756674443340,-480.0,0.00016506,2]
[382582586,1756674443365,-300.0,0.00016506,2]
[382582587,1756674443388,-621.14,0.00016506,2]
[382582588,1756674443410,-677.82,0.00016507,2]
[382582589,1756674443430,-480.0,0.00016507,2]
[382582590,1756674443450,-706.22,0.00016507,2]
[382582591,1756674443469,-3485.14,0.00016507,2]
[382582592,1756674443490,-1564.79,0.00016507,2]
[382582593,1756674443509,-480.0,0.00016507,2]
[382582594,1756674443528,-559.23,0.00016507,2]
[382582595,1756674443548,-1384.43,0.00016507,2]
[382582596,1756674443569,-480.0,0.00016507,2]
[382582597,1756674443588,-284.201,0.00016507,2]
[382582598,1756674443608,-694.71,0.00016507,2]
[382582599,1756674443628,-480.0,0.00016507,2]
[382582600,1756674443647,-508.68,0.00016507,2]
[382582601,1756674443667,-480.0,0.00016507,2]
[382582602,1756674443686,-773.25,0.00016507,2]
[382582603,1756674443706,-480.0,0.00016507,2]
[382582604,1756674443725,-480.0,0.00016507,2]
[382582605,1756674443745,-480.0,0.00016507,2]
[382582606,1756674443765,-480.0,0.00016507,2]
[382582607,1756674443787,-772.05,0.00016507,2]
[382582608,1756674443808,-480.0,0.00016507,2]
[382582609,1756674443827,-480.0,0.00016507,2]
[382582610,1756674443850,-1021.8,0.00016507,2]
[382582611,1756674443870,-161.93404135,0.00016508,2]
[382582612,1756674443889,-606.78088486,0.00016508,2]
[382582613,1756674443908,-163.414,0.00016549,2]
[382582614,1756674443929,-852.63,0.00016549,2]
[382582615,1756674443949,-852.63,0.00016549,2]
[382582616,1756674443969,-852.63,0.00016549,2]
[382582617,1756674443989,-852.63,0.00016549,2]
[382582618,1756674444008,-852.63,0.00016549,2]
[382582619,1756674444030,-852.63,0.00016549,2]
[382582620,1756674444050,-852.63,0.00016549,2]
[382582621,1756674444070,-852.63,0.00016549,2]
[382582622,1756674444089,-239.71105394,0.00016549,2]
[382582623,1756674444109,-608.31,0.0001655,2]
[382582624,1756674444128,-480.0,0.0001655,2]
[382582625,1756674444147,-480.0,0.0001655,2]
[382582626,1756674444166,-480.0,0.0001655,2]
[382582627,1756674444185,-480.0,0.0001655,2]
[382582628,1756674444205,-480.0,0.0001655,2]
[382582629,1756674444225,-480.0,0.0001655,2]
[382582630,1756674444244,-480.0,0.0001655,2]
[382582631,1756674444263,-480.0,0.0001655,2]
[382582632,1756674444282,-480.0,0.0001655,2]
[382582633,1756674444301,-480.0,0.0001655,2]
[382582634,1756674444322,-480.0,0.0001655,2]
[382582635,1756674444341,-480.0,0.0001655,2]
[382582636,1756674444364,-480.0,0.0001655,2]
[382582637,1756674444383,-480.0,0.0001655,2]
[382582638,1756674444404,-480.0,0.0001655,2]
[382582639,1756674444424,-480.0,0.0001655,2]
[382582640,1756674444444,-480.0,0.0001655,2]
[382582641,1756674444463,-895.0,0.0001655,2]
[382582642,1756674444483,-540.33,0.0001655,2]
[382582643,1756674444503,-480.0,0.0001655,2]
[382582644,1756674444524,-480.0,0.0001655,2]
[382582645,1756674444543,-480.0,0.0001655,2]
[382582646,1756674444562,-480.0,0.0001655,2]
[382582647,1756674444581,-835.72,0.0001655,2]
[382582648,1756674444606,-614.3,0.0001655,2]
[382582649,1756674444626,-290.01900254,0.0001655,2]
[382582650,1756674444647,-762.61,0.0001655,2]
[382582651,1756674444669,-480.0,0.0001655,2]
[382582652,1756674444689,-480.0,0.0001655,2]
[382582653,1756674444710,-480.0,0.0001655,2]
[382582654,1756674444732,-777.37,0.0001655,2]
[382582655,1756674444752,-785.19,0.0001655,2]
[382582656,1756674444773,-480.0,0.0001655,2]
[382582657,1756674444793,-480.0,0.0001655,2]
[382582658,1756674444814,-1046.65,0.0001655,2]
[382582659,1756674444835,-882.55,0.0001655,2]
[382582660,1756674444854,-1196.92,0.0001655,2]
[382582661,1756674444874,-874.27,0.0001655,2]
[382582662,1756674444896,-702.89,0.0001655,2]
[382582663,1756674444916,-522.49,0.0001655,2]
[382582664,1756674444935,-480.0,0.0001655,2]
[382582665,1756674444955,-480.0,0.0001655,2]
[382582666,1756674444975,-480.0,0.0001655,2]
[382582667,1756674444996,-480.0,0.0001655,2]
[382582668,1756674445017,-480.0,0.0001655,2]
[382582669,1756674445038,-480.0,0.0001655,2]
[382582670,1756674445058,-480.0,0.0001655,2]
[382582671,1756674445077,-483.83681509,0.0001655,2]
[382582672,1756674445098,-1060.27,0.0001655,2]